bitfinex/quotes_SOLUSD_20230104
["timestamp","ask_amount","ask_price","bid_price","bid_amount"]
[1672815935851,30.0,13.993,13.981,14.5]
[1672815936066,61.23091708,13.992,13.981,14.5]
[1672815936800,61.23091708,13.99,13.981,14.5]
[1672815937009,30.0,13.989,13.981,14.5]
[1672815937329,61.23091708,13.988,13.981,14.5]
[1672815938167,61.23091708,13.994,13.982,30.0]
[1672815938486,14.38,14.01,13.983,20.0]
[1672815938707,14.26,14.01,13.984,30.0]
[1672815938914,30.0,14.017,13.984,51.48724231]
[1672815939129,14.41,14.02,13.985,20.0]
[1672815939441,14.37,14.02,13.986,51.48724231]
[1672815939656,14.37,14.02,13.987,20.0]
[1672815939844,14.37,14.02,13.987,97.7706414]
[1672815940056,14.37,14.02,13.988,107.7706414]
[1672815940265,14.37,14.02,13.989,20.0]
[1672815940483,14.36,14.01,13.99,30.0]
[1672815940691,14.36,14.01,13.99,86.28339909]
[1672815940902,14.36,14.01,13.992,30.0]
[1672815941112,14.36,14.01,13.994,30.0]
[1672815941645,14.36,14.01,13.996,30.0]
[1672815941961,14.36,14.01,13.997,20.0]
[1672815942181,14.36,14.01,13.995,20.0]
[1672815942811,71.8,14.01,13.995,20.0]
[1672815942995,71.8,14.01,13.992,30.0]
[1672815942996,30.0,14.008,13.989,24.5]
[1672815943206,53.59,14.009,13.989,24.5]
[1672815943541,125.13,14.01,13.989,24.5]
[1672815943757,14.22,14.01,13.989,24.5]
[1672815944165,71.66,14.01,13.99,20.0]
[1672815945004,71.66,14.01,13.991,30.0]
[1672815945318,14.22,14.01,13.993,30.0]
[1672815945537,53.56,14.016,13.995,30.0]
[1672815945747,71.81,14.02,13.995,30.0]
[1672815945748,53.55,14.019,13.995,30.0]
[1672815945959,71.81,14.02,13.995,30.0]
[1672815946189,83.55,14.019,13.996,20.0]
[1672815946485,53.55,14.019,13.996,20.0]
[1672815946708,71.81,14.02,13.997,30.0]
[1672815946884,14.36,14.01,13.998,20.0]
[1672815947095,72.01,14.01,13.996,20.0]
[1672815947310,30.0,14.009,13.996,20.0]
[1672815947517,53.59,14.008,13.996,20.0]
[1672815947863,53.59,14.008,13.993,20.0]
[1672815948259,53.59,14.009,13.994,24.5]
[1672815948481,14.47,14.01,13.994,24.5]
[1672815949510,14.47,14.01,13.995,20.0]
[1672815949745,30.0,14.016,13.995,20.0]
[1672815950455,30.0,14.016,13.992,115.7677]
[1672815950456,71.76,14.01,13.992,115.7677]
[1672815950673,71.84,14.0,13.97,1.76587352]
[1672815950883,83.62,13.999,13.981,117.9096]
[1672815951107,30.0,13.998,13.981,117.9096]
[1672815951331,83.62,13.999,13.981,117.9096]
[1672815951332,30.0,13.996,13.981,117.9096]
[1672815951827,53.63,13.998,13.981,117.9096]
[1672815952037,53.63,13.998,13.982,30.0]
[1672815952256,71.84,14.0,13.981,117.9096]
[1672815952257,53.62,13.999,13.981,117.9096]
[1672815952795,30.0,13.998,13.981,117.9096]
[1672815953106,53.63,13.997,13.982,20.0]
[1672815953634,53.63,13.997,13.981,117.9096]
[1672815954254,30.0,13.998,13.981,117.9096]
[1672815954573,30.0,13.995,13.981,117.9096]
[1672815954978,14.36,13.99,13.981,117.4096]
[1672815955199,30.0,13.994,13.982,20.0]
[1672815955415,83.64,13.994,13.981,20.0]
[1672815955609,83.64,13.994,13.973,30.0]
[1672815955828,30.0,13.989,13.97,31.76587352]
[1672815956151,83.66,13.989,13.97,31.76587352]
[1672815956344,53.66,13.989,13.97,31.76587352]
[1672815956554,14.36,13.99,13.981,20.0]
[1672815956780,53.64,13.995,13.981,20.0]
[1672815956979,14.25,13.99,13.981,20.0]
[1672815957191,71.67,13.99,13.97,1.76587352]
[1672815957390,30.0,13.988,13.97,1.76587352]
[1672815957605,53.67,13.987,13.97,1.76587352]
[1672815957830,53.67,13.987,13.98,156.2836376]
[1672815957831,30.0,13.986,13.98,156.2836376]
[1672815958037,30.0,13.985,13.98,156.2836376]
[1672815958658,83.68,13.985,13.98,156.2836376]
[1672815959083,30.0,13.985,13.98,156.2836376]
[1672815960880,53.67,13.987,13.98,156.2836376]
[1672815961103,53.67,13.988,13.98,156.2836376]
[1672815961414,30.0,13.987,13.98,156.2836376]
[1672815962027,71.73,13.99,13.98,156.2836376]
[1672815962235,71.7,14.0,13.981,20.0]
[1672815962768,14.36,13.99,13.981,20.0]
[1672815962990,14.36,13.99,13.98,156.2836376]
[1672815962991,30.0,13.989,13.98,156.2836376]
[1672815963301,30.0,13.987,13.98,156.2836376]
[1672815963934,71.64,13.99,13.98,156.2836376]
[1672815964124,30.0,13.989,13.98,156.2836376]
[1672815964566,83.66,13.989,13.98,156.2836376]
[1672815967487,134.89440045,13.989,13.98,0.0036376]
[1672815967708,30.0,13.984,13.98,0.0036376]
[1672815967911,30.0,13.982,13.98,0.0036376]
[1672815968243,53.69,13.981,13.98,0.0036376]
[1672815971895,30.0,13.98,13.972,65.1285014]
[1672815972114,46.24285682,13.977,13.972,0.0085014]
[1672815972327,30.0,13.974,13.964,20.0]
[1672815972525,48.87797694,13.969,13.964,19.43879505]
[1672815972739,48.87797694,13.969,13.954,117.4454]
[1672815972740,30.0,13.968,13.954,117.4454]
[1672815973085,52.10925762,13.967,13.954,117.4454]
[1672815973276,30.0,13.966,13.962,41.7839073]
[1672815973488,52.10925762,13.965,13.962,0.0039073]
[1672815973804,53.60602467,13.963,13.962,0.0039073]
[1672815974020,107.36602467,13.963,13.962,0.0039073]
[1672815974743,53.60602467,13.963,13.962,0.0039073]
[1672815976103,53.60602467,13.965,13.962,0.0039073]
[1672815976327,14.45,13.97,13.962,0.0039073]
[1672815976646,14.36,13.97,13.962,0.0039073]
[1672815977269,71.73,13.97,13.962,0.0039073]
[1672815977485,215.33,13.97,13.962,0.0039073]
[1672815977697,73.42936138,13.969,13.962,0.0039073]
[1672815977906,127.16936138,13.969,13.962,0.0039073]
[1672815978338,49.83141493,13.967,13.962,0.0039073]
[1672815978530,49.83141493,13.965,13.962,0.0039073]
[1672815978740,30.0,13.969,13.962,0.0039073]
[1672815978741,49.83141493,13.967,13.962,0.0039073]
[1672815978948,79.83141493,13.969,13.962,0.0039073]
[1672815979181,30.0,13.969,13.962,0.0039073]
[1672815979392,43.99724853,13.968,13.962,0.0039073]
[1672815979793,71.75,13.97,13.962,0.0039073]
[1672815980131,14.38,13.97,13.962,0.0039073]
[1672815980745,30.0,13.969,13.962,0.0039073]
[1672815980959,71.82,13.97,13.962,0.0039073]
[1672815981188,14.38,13.97,13.962,0.0039073]
[1672815982325,30.0,13.969,13.962,0.0039073]
[1672815982543,53.74,13.968,13.962,0.0039073]
[1672815982747,30.0,13.967,13.962,0.0039073]
[1672815982960,30.0,13.965,13.962,0.0039073]
[1672815983164,53.76,13.964,13.962,0.0039073]
[1672815983379,42.26623201,13.963,13.962,0.0039073]
[1672815983578,96.02623201,13.963,13.962,0.0039073]
[1672815983913,53.76,13.963,13.962,0.0039073]
[1672815984220,30.0,13.963,13.962,0.0039073]
[1672815984418,83.76,13.963,13.962,0.0039073]
[1672815984621,126.15225754,13.963,13.962,0.0039073]
[1672815984837,30.0,13.962,13.943,20.0]
[1672815985049,30.0,13.962,13.942,117.4454]
[1672815985050,14.36,13.95,13.942,117.4454]
[1672815985257,14.36,13.95,13.941,74.0918513]
[1672815985480,71.8,13.95,13.941,74.0918513]
[1672815985695,51.4776676,13.949,13.941,74.0918513]
[1672815986003,14.37,13.95,13.941,222.8768863]
[1672815986226,42.09147995,13.949,13.941,222.8768863]
[1672815986537,30.0,13.948,13.941,222.8768863]
[1672815988532,71.85,13.95,13.941,222.8768863]
[1672815988844,14.26,13.95,13.941,222.8768863]
[1672815989039,101.82,13.96,13.952,71.65695265]
[1672815989456,245.42,13.96,13.952,71.65695265]
[1672815989671,53.78,13.958,13.952,0.00695265]
[1672815990100,133.18651207,13.981,13.959,83.35707602]
[1672815990421,30.0,13.98,13.953,50.57592677]
[1672815990734,30.0,13.969,13.952,148.79198765]
[1672815991047,30.0,13.967,13.952,148.79198765]
[1672815991263,72.01,13.96,13.952,148.79198765]
[1672815991666,53.78,13.959,13.952,148.79198765]
[1672815991877,53.78,13.959,13.952,148.29198765]
[1672815992092,72.01,13.96,13.952,148.29198765]
[1672815992936,14.47,13.96,13.953,30.0]
[1672815993143,14.47,13.96,13.952,148.29198765]
[1672815993562,53.74,13.969,13.953,59.26934052]
[1672815993770,53.74,13.969,13.954,30.0]
[1672815993981,14.36,13.96,13.942,30.0]
[1672815994197,71.77,13.96,13.954,148.29198765]
[1672815994619,71.84,13.97,13.955,30.0]
[1672815994938,71.84,13.97,13.957,30.0]
[1672815994939,14.4,13.97,13.957,30.0]
[1672815995150,87.52,13.98,13.957,30.0]
[1672815995151,14.38,13.98,13.958,20.0]
[1672815995363,53.7,13.979,13.958,98.91074522]
[1672815995570,14.3,13.98,13.959,98.91074522]
[1672815995885,14.3,13.98,13.961,30.0]
[1672815996090,14.3,13.98,13.961,178.29198765]
[1672815996282,53.7,13.979,13.962,154.01927246]
[1672815996497,14.3,13.98,13.963,30.0]
[1672815996703,53.7,13.979,13.964,20.0]
[1672815996930,53.7,13.979,13.964,108.28052724]
[1672815997127,53.7,13.979,13.964,71.38267385]
[1672815997339,14.36,13.97,13.965,109.66320109]
[1672815997676,14.36,13.97,13.961,148.29198765]
[1672815999136,30.0,13.974,13.961,148.29198765]
[1672815999354,14.36,13.97,13.961,148.29198765]
[1672815999768,71.8,13.97,13.961,148.29198765]
[1672815999976,30.0,13.969,13.961,148.29198765]
[1672816000703,71.55,13.97,13.961,148.29198765]
[1672816000910,14.22,13.97,13.961,148.29198765]
[1672816001117,14.3,13.98,13.962,20.0]
[1672816001335,83.7,13.979,13.962,20.0]
[1672816001555,83.7,13.979,13.961,148.29198765]
[1672816001556,14.25,13.97,13.961,148.29198765]
[1672816001757,28.51,13.97,13.961,148.29198765]
[1672816002395,14.26,13.97,13.961,148.29198765]
[1672816003223,71.7,13.97,13.961,148.29198765]
[1672816003448,30.0,13.968,13.961,148.29198765]
[1672816003763,73.75,13.967,13.961,148.29198765]
[1672816003970,30.0,13.966,13.961,148.29198765]
[1672816004181,30.0,13.964,13.961,148.29198765]
[1672816004376,53.76,13.963,13.961,148.29198765]
[1672816004587,30.0,13.962,13.961,148.29198765]
[1672816005022,53.76,13.963,13.961,148.29198765]
[1672816005226,30.0,13.966,13.961,148.29198765]
[1672816005227,30.0,13.964,13.961,148.29198765]
[1672816005645,30.0,13.964,13.961,148.19494283]
[1672816005859,30.0,13.966,13.961,148.19494283]
[1672816006067,53.76,13.965,13.961,148.19494283]
[1672816006266,30.0,13.964,13.961,148.19494283]
[1672816006480,53.76,13.963,13.945,30.0]
[1672816006687,53.76,13.963,13.938,30.0]
[1672816006688,46.81094174,13.959,13.938,30.0]
[1672816006912,46.81094174,13.959,13.929,161.7836376]
[1672816006913,53.78,13.958,13.93,110.4305]
[1672816007118,71.72,13.95,13.929,161.7836376]
[1672816007329,50.05434753,13.948,13.929,161.7836376]
[1672816007535,50.05434753,13.946,13.929,161.7836376]
[1672816007748,50.05434753,13.948,13.93,30.0]
[1672816007962,30.0,13.945,13.93,30.0]
[1672816008174,14.49,13.95,13.93,30.0]
[1672816008387,45.96227679,13.949,13.93,30.0]
[1672816008594,30.0,13.948,13.93,30.0]
[1672816009230,14.22,13.95,13.93,30.0]
[1672816009442,30.0,13.954,13.93,30.0]
[1672816009635,14.41,13.96,13.935,25.46995548]
[1672816009849,30.0,13.959,13.942,20.0]
[1672816012272,30.0,13.96,13.943,61.36328882]
[1672816012495,53.76,13.965,13.944,20.0]
[1672816012697,53.74,13.968,13.945,30.0]
[1672816013031,30.0,13.967,13.946,20.0]
[1672816013328,71.46,13.96,13.946,99.60136654]
[1672816013649,30.0,13.959,13.946,20.0]
[1672816014261,30.0,13.959,13.945,116.4609]
[1672816014466,71.46,13.96,13.945,116.4609]
[1672816014682,14.26,13.96,13.945,116.4609]
[1672816014889,30.0,13.959,13.945,116.4609]
[1672816015107,30.0,13.957,13.941,74.0918513]
[1672816015433,14.36,13.95,13.941,74.0918513]
[1672816017408,71.78,13.95,13.941,74.0918513]
[1672816017620,117.81883947,13.949,13.941,74.0918513]
[1672816017837,45.18885784,13.947,13.941,0.0018513]
[1672816018053,53.83,13.946,13.941,0.0018513]
[1672816018276,53.82,13.947,13.941,0.0018513]
[1672816018471,30.0,13.946,13.941,0.0018513]
[1672816018680,30.0,13.944,13.941,0.0018513]
[1672816019309,45.00718422,13.943,13.902,133.18651207]
[1672816019524,30.0,13.944,13.915,114.3974]
[1672816019525,49.72247715,13.939,13.915,114.3974]
[1672816019738,49.72247715,13.939,13.921,30.0]
[1672816019945,30.0,13.938,13.921,30.0]
[1672816020147,71.73,13.94,13.923,34.04128882]
[1672816020353,30.0,13.939,13.923,34.04128882]
[1672816020683,30.0,13.939,13.921,30.0]
[1672816021332,14.29,13.94,13.921,30.0]
[1672816021548,14.29,13.94,13.925,55.52853113]
[1672816021756,14.29,13.94,13.923,43.8529656]
[1672816021757,14.29,13.94,13.93,68.80974366]
[1672816021945,14.29,13.94,13.93,30.0]
[1672816022276,30.0,13.939,13.924,114.9297]
[1672816022489,71.73,13.94,13.93,20.0]
[1672816023102,71.73,13.94,13.926,37.41619988]
[1672816023313,30.0,13.949,13.931,37.41619988]
[1672816023540,30.0,13.949,13.93,30.0]
[1672816024275,30.0,13.949,13.926,30.0]
[1672816024486,14.36,13.94,13.93,20.0]
[1672816025098,30.0,13.949,13.93,20.0]
[1672816025310,14.29,13.95,13.931,30.0]
[1672816025528,57.33,13.96,13.932,20.0]
[1672816025529,71.7,13.96,13.932,20.0]
[1672816025730,71.7,13.96,13.933,30.0]
[1672816025942,71.8,13.95,13.934,20.0]
[1672816026171,14.22,13.95,13.934,70.41055507]
[1672816026493,14.22,13.95,13.935,44.84811507]
[1672816026684,30.0,13.957,13.936,20.0]
[1672816027118,30.0,13.957,13.937,44.84811507]
[1672816027305,30.0,13.957,13.938,20.0]
[1672816027737,30.0,13.957,13.939,44.84811507]
[1672816027951,30.0,13.957,13.94,20.0]
[1672816028374,14.32,13.95,13.94,64.69991507]
[1672816029105,14.32,13.95,13.94,20.0]
[1672816029322,14.32,13.95,13.933,20.0]
[1672816030061,14.32,13.95,13.933,94.69991507]
[1672816030257,14.32,13.95,13.933,64.69991507]
[1672816030477,14.32,13.95,13.933,108.55288067]
[1672816030792,14.36,13.95,13.934,30.0]
[1672816031009,14.36,13.95,13.935,20.0]
[1672816031540,14.36,13.95,13.936,30.0]
[1672816031732,14.36,13.95,13.937,20.0]
[1672816032362,14.36,13.95,13.921,30.0]
[1672816032675,14.36,13.95,13.93,30.0]
[1672816032676,30.0,13.949,13.93,30.0]
[1672816033098,30.0,13.949,13.932,160.85201507]
[1672816033852,30.0,13.949,13.932,116.1521]
[1672816035198,14.26,13.95,13.932,116.1521]
[1672816035408,30.0,13.953,13.933,30.0]
[1672816035625,30.0,13.953,13.933,44.69991507]
[1672816035823,14.36,13.95,13.932,116.1521]
[1672816036037,14.36,13.95,13.934,30.0]
[1672816036264,14.36,13.95,13.935,20.0]
[1672816037009,71.78,13.95,13.934,20.0]
[1672816037215,14.36,13.94,13.933,20.0]
[1672816037527,14.36,13.94,13.927,109.3705]
[1672816037838,14.26,13.94,13.927,109.3705]
[1672816038880,71.7,13.94,13.927,109.3705]
[1672816039087,30.0,13.939,13.927,109.3705]
[1672816039834,71.7,13.94,13.927,109.3705]
[1672816040453,30.0,13.939,13.927,109.3705]
[1672816041408,30.0,13.937,13.927,109.3705]
[1672816042150,30.0,13.937,13.922,70.3194]
[1672816042151,30.0,13.937,13.922,23.376]
[1672816042341,53.87,13.936,13.922,23.376]
[1672816042553,30.0,13.935,13.922,23.376]
[1672816042980,30.0,13.935,13.913,20.0]
[1672816042981,30.0,13.935,13.911,0.0084068]
[1672816042982,116.72447686,13.916,13.911,0.0084068]
[1672816043193,37.12587776,13.913,13.911,0.0084068]
[1672816043407,122.30798159,13.915,13.889,74.0918513]
[1672816043408,30.0,13.911,13.889,74.0918513]
[1672816043608,138.01065887,13.91,13.889,74.0918513]
[1672816043813,84.04065887,13.91,13.889,74.0918513]
[1672816044030,14.36,13.9,13.889,74.0918513]
[1672816044244,84.04065887,13.899,13.889,74.0918513]
[1672816044453,30.0,13.907,13.889,74.0918513]
[1672816044770,84.04065887,13.906,13.889,74.0918513]
[1672816044995,84.04065887,13.914,13.889,74.0918513]
[1672816045178,84.04065887,13.911,13.89,39.21450301]
[1672816045390,84.04065887,13.915,13.893,30.0]
[1672816045609,0.60036304,13.916,13.894,30.0]
[1672816045931,71.91,13.91,13.894,78.15235293]
[1672816046133,71.68,13.91,13.895,84.82568626]
[1672816046348,30.0,13.908,13.893,69.4906]
[1672816046551,14.26,13.91,13.894,45.61118325]
[1672816046764,53.96,13.913,13.894,45.61118325]
[1672816046980,0.60036304,13.916,13.895,42.33450301]
[1672816047388,0.60036304,13.916,13.896,20.0]
[1672816047712,14.32,13.91,13.896,20.0]
[1672816047920,0.60036304,13.916,13.896,60.11118325]
[1672816048127,0.60036304,13.916,13.896,14.5]
[1672816048331,0.60036304,13.916,13.896,102.44568626]
[1672816048767,0.60036304,13.916,13.896,60.11118325]
[1672816048973,71.93,13.91,13.896,60.11118325]
[1672816049179,83.97,13.909,13.896,14.5]
[1672816049390,83.97,13.909,13.894,20.0]
[1672816049595,14.28,13.9,13.893,93.4023]
[1672816049798,14.28,13.9,13.893,22.9625]
[1672816050224,71.72,13.9,13.893,22.9625]
[1672816050432,30.0,13.899,13.893,22.9625]
[1672816050965,71.85,13.9,13.893,22.9625]
[1672816051175,14.39,13.9,13.893,22.9625]
[1672816052444,71.83,13.91,13.893,22.9625]
[1672816052647,30.0,13.909,13.893,22.9625]
[1672816053187,30.0,13.909,13.894,20.0]
[1672816053396,71.83,13.91,13.894,20.0]
[1672816053593,30.0,13.909,13.895,45.61118325]
[1672816053804,30.0,13.909,13.896,20.0]
[1672816054013,71.83,13.91,13.895,87.94568626]
[1672816054222,71.57,13.9,13.895,84.92101959]
[1672816054444,84.01,13.899,13.893,22.9625]
[1672816054971,84.01,13.899,13.892,99.58275277]
[1672816055370,20.0,13.898,13.892,99.58275277]
[1672816055579,54.02,13.897,13.892,99.58275277]
[1672816055786,30.0,13.896,13.892,99.58275277]
[1672816056205,30.0,13.894,13.892,99.58275277]
[1672816056839,30.0,13.894,13.892,148.27554269]
[1672816057049,54.03,13.895,13.892,99.58275277]
[1672816057260,30.0,13.894,13.892,99.58275277]
[1672816057480,54.03,13.893,13.892,99.58275277]
[1672816058320,30.0,13.894,13.892,99.58275277]
[1672816059161,54.03,13.893,13.892,99.58275277]
[1672816059783,30.0,13.894,13.892,99.58275277]
[1672816060208,30.0,13.894,13.892,0.00275277]
[1672816060429,54.03,13.893,13.892,0.00275277]
[1672816060644,30.0,13.894,13.892,0.00275277]
[1672816062522,30.0,13.897,13.892,0.00275277]
[1672816062843,14.26,13.9,13.892,0.00275277]
[1672816063053,54.01,13.899,13.892,54.11854402]
[1672816063265,53.98,13.906,13.892,54.11854402]
[1672816063463,30.0,13.907,13.893,56.25064325]
[1672816063668,30.0,13.907,13.893,105.12310116]
[1672816063882,14.36,13.9,13.893,48.87245791]
[1672816064087,14.36,13.9,13.892,0.00275277]
[1672816064521,30.0,13.899,13.892,44.00557602]
[1672816064734,30.0,13.899,13.892,0.00275277]
[1672816064955,20.0,13.898,13.892,0.00275277]
[1672816065141,71.93,13.9,13.896,0.35982]
[1672816065350,30.0,13.905,13.893,47.49973658]
[1672816065351,0.6640857,13.894,13.893,47.49973658]
[1672816065576,0.6640857,13.894,13.892,0.00275277]
[1672816066637,0.6640857,13.894,13.893,51.32581791]
[1672816067033,0.6640857,13.894,13.892,0.00275277]
[1672816070933,54.03,13.893,13.892,0.00275277]
[1672816071775,0.6640857,13.894,13.892,0.00275277]
[1672816072402,54.03,13.893,13.892,0.00275277]
[1672816072618,0.6640857,13.894,13.892,0.00275277]
[1672816073869,30.0,13.893,13.892,0.00275277]
[1672816074938,0.6640857,13.894,13.892,0.00275277]
[1672816077133,0.6640857,13.894,13.892,43.63126338]
[1672816077461,0.0040857,13.894,13.893,54.80010325]
[1672816077679,53.98,13.908,13.894,30.66]
[1672816077864,53.97,13.909,13.894,30.66]
[1672816078080,53.97,13.909,13.895,131.94945952]
[1672816078405,53.97,13.909,13.896,129.61594218]
[1672816078598,53.96,13.913,13.897,30.0]
[1672816078807,0.60036304,13.916,13.897,238.43812278]
[1672816079018,0.60036304,13.916,13.899,30.0]
[1672816079454,0.60036304,13.916,13.897,30.0]
[1672816079455,0.60036304,13.916,13.9,163.8231128]
[1672816079647,0.60036304,13.916,13.9,99.56757797]
[1672816079858,0.60036304,13.916,13.901,99.56757797]
[1672816080063,14.36,13.91,13.901,99.56757797]
[1672816080278,14.36,13.91,13.903,30.0]
[1672816080595,71.73,13.91,13.904,99.49021064]
[1672816081120,71.73,13.91,13.905,129.49021064]
[1672816081328,14.3,13.91,13.905,129.49021064]
[1672816081546,14.3,13.91,13.907,30.0]
[1672816081755,0.60036304,13.916,13.907,30.0]
[1672816081965,0.60036304,13.916,13.907,104.34354397]
[1672816082191,0.60036304,13.916,13.903,30.0]
[1672816082401,14.36,13.91,13.902,104.34354397]
[1672816082816,71.83,13.91,13.889,74.0918513]
[1672816083030,14.36,13.9,13.889,146.6434513]
[1672816083346,71.84,13.9,13.889,98.9119513]
[1672816083751,71.84,13.9,13.889,74.0918513]
[1672816083981,30.0,13.898,13.889,74.0918513]
[1672816084297,14.26,13.9,13.889,74.0918513]
[1672816084611,71.7,13.9,13.889,74.0918513]
[1672816085017,30.0,13.898,13.889,74.0918513]
[1672816085445,54.01,13.899,13.889,74.0918513]
[1672816085764,71.7,13.9,13.889,74.0918513]
[1672816085964,14.26,13.9,13.891,21.48724231]
[1672816086295,14.26,13.9,13.889,74.0918513]
[1672816087970,30.0,13.908,13.889,74.0918513]
[1672816087971,53.97,13.909,13.892,43.68306335]
[1672816088167,71.61,13.91,13.892,43.68306335]
[1672816088376,71.61,13.91,13.892,81.81085694]
[1672816088691,53.97,13.909,13.892,65.17030566]
[1672816088901,14.26,13.91,13.893,30.0]
[1672816089112,14.26,13.91,13.894,20.0]
[1672816089328,14.26,13.91,13.894,71.60164392]
[1672816089552,37.13510773,13.915,13.895,81.60164392]
[1672816089742,37.13510773,13.918,13.895,130.16192349]
[1672816089946,14.36,13.91,13.897,30.0]
[1672816090487,14.36,13.91,13.899,30.0]
[1672816090692,53.94,13.917,13.899,30.0]
[1672816090910,53.94,13.917,13.9,51.60164392]
[1672816091539,53.94,13.917,13.899,30.0]
[1672816091737,14.32,13.91,13.899,30.0]
[1672816091959,14.32,13.91,13.899,81.60164392]
[1672816092578,14.32,13.91,13.897,30.0]
[1672816092790,71.73,13.91,13.897,30.0]
[1672816093332,71.73,13.91,13.895,22.5505]
[1672816093544,71.73,13.91,13.896,20.0]
[1672816093755,71.73,13.91,13.897,30.0]
[1672816095013,0.60036304,13.916,13.898,51.7940034]
[1672816095333,0.60036304,13.916,13.899,51.48724231]
[1672816095523,0.60036304,13.916,13.9,20.0]
[1672816095730,0.60036304,13.916,13.897,98.7309]
[1672816095731,14.36,13.91,13.897,68.7309]
[1672816096059,71.84,13.91,13.897,68.7309]
[1672816096678,53.97,13.909,13.897,68.7309]
[1672816096916,71.84,13.91,13.897,68.7309]
[1672816097104,71.84,13.91,13.897,22.9262]
[1672816098041,20.0,13.909,13.897,22.9262]
[1672816098254,53.98,13.908,13.897,22.9262]
[1672816098465,30.0,13.907,13.897,22.9262]
[1672816098684,71.84,13.91,13.897,22.9262]
[1672816101006,71.84,13.91,13.898,30.0]
[1672816102255,14.26,13.91,13.898,30.0]
[1672816102470,0.60036304,13.916,13.899,20.0]
[1672816102891,0.60036304,13.916,13.9,30.0]
[1672816103103,0.60036304,13.916,13.901,20.0]
[1672816103520,0.60036304,13.916,13.902,30.0]
[1672816103727,14.36,13.91,13.903,20.0]
[1672816104143,14.36,13.91,13.904,30.0]
[1672816104558,14.36,13.91,13.905,20.0]
[1672816104764,0.0001,13.91,13.906,30.0]
[1672816104997,0.60036304,13.916,13.906,30.0]
[1672816105208,0.60036304,13.916,13.907,20.0]
[1672816105629,0.60036304,13.916,13.908,30.0]
[1672816106455,57.22,13.93,13.91,30.0]
[1672816106669,71.48,13.93,13.912,30.0]
[1672816107221,71.48,13.93,13.913,41.48724231]
[1672816107404,14.26,13.93,13.914,30.0]
[1672816107618,14.26,13.93,13.916,30.0]
[1672816107960,71.68,13.93,13.917,68.8143108]
[1672816108166,71.68,13.93,13.917,72.05294624]
[1672816108353,71.68,13.93,13.918,1.876]
[1672816108689,53.86,13.939,13.918,31.876]
[1672816109007,53.86,13.939,13.92,30.0]
[1672816109199,53.86,13.939,13.921,20.0]
[1672816109619,53.86,13.939,13.922,30.0]
[1672816110040,53.86,13.939,13.924,30.0]
[1672816110469,14.26,13.94,13.924,30.0]
[1672816110470,14.26,13.94,13.925,20.0]
[1672816110677,14.26,13.94,13.926,30.0]
[1672816110900,14.26,13.94,13.928,74.38569362]
[1672816111207,71.73,13.94,13.928,44.38569362]
[1672816111404,53.86,13.939,13.925,20.0]
[1672816111821,14.4,13.94,13.926,30.0]
[1672816112045,14.4,13.94,13.927,20.0]